fUSD/lending_fUSD_20250306
["ID","MTS","AMOUNT","RATE_DAILY","PERIOD"]
[355545995,1741258238313,-152.24,0.0001146,2]
[355545996,1741258238323,-152.24,0.00011531,2]
[355545997,1741258238332,-150.0,0.00011613,2]
[355545998,1741258238342,-150.0,0.00011613,2]
[355545999,1741258238351,-550.0,0.00011613,2]
[355546000,1741258238361,-150.0,0.00011657,2]
[355546001,1741258238371,-593.0,0.00011671,2]
[355546002,1741258238380,-1143.4098492,0.0001169,2]
[355546003,1741258238390,-682.13119122,0.0001169,2]
[355546004,1741258238400,-375.51395471,0.0001169,2]
[355546005,1741258238410,-1114.656,0.0001169,2]
[355546006,1741258238420,-1131.45581693,0.00011691,2]
[355546007,1741258238432,-417.83098307,0.00011691,2]
[355546008,1741258238442,-2075.50452405,0.00011691,2]
[355546009,1741258238453,-1004.48896005,0.00011691,2]
[355546010,1741258238466,-1471.09,0.00011691,2]
[355546011,1741258238477,-2785.10396929,0.00011691,2]
[355546012,1741258238489,-988.16095486,0.00011691,2]
[355546013,1741258238500,-2271.20648807,0.00011691,2]
[355546015,1741258238517,-27036.79520368,0.00011691,2]
[355546016,1741258238528,-3961.08755323,0.00011691,2]
[355546017,1741258238539,-833.69583873,0.00011691,2]
[355546018,1741258238551,-11178.78270804,0.00011691,2]
[355546019,1741258238561,-634.8589,0.00011691,2]
[355546020,1741258238571,-311.5805,0.00011691,2]
[355546021,1741258238581,-158.12184812,0.00011691,2]
[355546022,1741258238591,-153.62169547,0.00011691,2]
[355546023,1741258238601,-21008.821,0.00011692,2]
[355546024,1741258238610,-272.7185,0.00011692,2]
[355546025,1741258238620,-278.44743026,0.00011789,2]
[355546026,1741258238636,-451.55256974,0.00011789,2]
[355546028,1741258238645,-558.64,0.00011789,2]
[355546030,1741258238655,-709.32,0.00011789,2]
[355546032,1741258238665,-500.0,0.00011789,2]
[355546034,1741258238674,-1343.84,0.00011789,2]
[355546035,1741258238684,-1200.38,0.00011789,2]
[355546036,1741258238693,-912.42,0.00011789,2]
[355546037,1741258238702,-500.0,0.00011789,2]
[355546038,1741258238711,-1153.97,0.00011789,2]
[355546039,1741258238720,-1293.86,0.00011789,2]
[355546040,1741258238730,-682.94,0.00011789,2]
[355546041,1741258238739,-1328.59,0.00011789,2]
[355546042,1741258238749,-500.0,0.00011789,2]
[355546043,1741258238758,-1150.95,0.00011789,2]
[355546044,1741258238767,-979.65,0.00011789,2]
[355546045,1741258238777,-2444.31,0.00011789,2]
[355546046,1741258238786,-552.49,0.00011789,2]
[355546047,1741258238796,-500.0,0.00011789,2]
[355546048,1741258238806,-598.32,0.00011789,2]
[355546049,1741258238815,-920.28,0.00011789,2]
[355546050,1741258238824,-1028.19,0.00011789,2]
[355546051,1741258238833,-1193.55,0.00011789,2]
[355546052,1741258238843,-802.28,0.00011789,2]
[355546053,1741258238852,-368.02,0.00011789,2]
[355546054,1741258238861,-601.41,0.00011789,2]
[355546055,1741258238871,-4241.4,0.00011789,2]
[355546056,1741258238880,-500.0,0.00011789,2]
[355546057,1741258238889,-500.0,0.00011789,2]
[355546058,1741258238898,-509.14,0.00011789,2]
[355546059,1741258238908,-31251.84098682,0.0001179,2]
[355546065,1741258240456,-1215.43488225,0.0001179,2]
[355546066,1741258240468,-277.75300004,0.0001179,2]
[355546067,1741258240479,-1184.48728988,0.0001179,2]
[355546068,1741258240573,-414.429,0.0001179,2]
[355546069,1741258241361,-804.57438412,0.0001179,2]
[355546084,1741258243476,-500.0,0.00011789,2]
[355546085,1741258243486,-3950.96072385,0.0001179,2]
[355546090,1741258246605,-417.96155965,0.0001179,2]
[355546091,1741258429421,507.08451672,0.0001179,120]
[355546095,1741258678739,435.21,8.908e-05,2]
[355546099,1741259207739,-150.0,0.00010946,7]
[355546100,1741259272704,-150.0,0.00010696,2]
[355546114,1741259431465,-1000.0,0.00010634,2]
[355546115,1741259431475,-150.0,0.00010665,7]
[355546116,1741259431485,-8.98,0.00010696,2]
[355546117,1741259431494,-156.43,0.00010803,2]
[355546118,1741259431503,-156.43,0.00010976,2]
[355546119,1741259431513,-550.0,0.00011,2]
[355546120,1741259431522,-143.29109877,0.00011,2]
[355546121,1741259431534,-2388.93954564,0.00011,2]
[355546122,1741259431654,-3006.76935559,0.00011,2]
[355546123,1741259431664,-500.0,0.00011096,2]
[355546124,1741259431676,-163.25,0.00011139,2]
[355546125,1741259431686,-156.43,0.00011149,2]
[355546126,1741259431696,-168.79235518,0.00011172,2]
[355546127,1741259431733,-266.41764482,0.00011172,2]
[355546128,1741259431745,-414.25879805,0.000113,3]
[355546129,1741259431763,-5137.74120195,0.000113,3]
[355546130,1741259431773,-300.0,0.00011307,2]
[355546131,1741259431785,-150.0,0.00011308,2]
[355546132,1741259431795,-550.0,0.00011308,2]
[355546133,1741259431804,-1921.81,0.00011308,2]
[355546134,1741259431814,-156.43,0.00011322,2]
[355546135,1741259431824,-156.43,0.00011495,2]
[355546136,1741259431834,-4529.78895754,0.000115,5]
[355546210,1741259437970,-1022.21104246,0.000115,5]
[355546211,1741259437980,-542.16,0.00011507,2]
[355546212,1741259437990,-150.0,0.00011557,2]
[355546213,1741259437999,-550.0,0.00011557,2]
[355546214,1741259438009,-156.43,0.00011668,2]
[355546215,1741259438018,-1591.7091,0.0001167,2]
[355546216,1741259438027,-7425.07532772,0.00011671,2]
[355546217,1741259438037,-4979.59601964,0.0001168,2]
[355546218,1741259438048,-13755.0718923,0.0001168,2]
[355546219,1741259438058,-1528.90355181,0.00011687,2]
[355546220,1741259438068,-158.12184812,0.00011688,2]
[355546221,1741259438078,-375.51395471,0.00011688,2]
[355546222,1741259438089,-153.62169544,0.00011689,2]
[355546223,1741259438099,-150.0,0.00011689,2]
[355546224,1741259438108,-498.2507467,0.00011689,2]
[355546225,1741259438118,-1809.2143,0.0001169,2]
[355546226,1741259438127,-500.0,0.0001169,2]
[355546227,1741259438137,-2983.45872214,0.0001169,2]
[355546228,1741259438411,-2674.87767786,0.0001169,2]
[355546229,1741259438421,-44.0623691,0.0001169,2]
[355546230,1741259438440,-277.595,0.0001169,2]
[355546231,1741259438451,-2431.6353309,0.0001169,2]
[355546232,1741259438460,-195.7858,0.0001169,2]
[355546233,1741259438470,-335.6788682,0.00011699,2]
[355546234,1741259438481,-81.3211318,0.00011699,2]
[355546235,1741259438491,-5000.0,0.000117,2]
[355546236,1741259438501,-2271.06,0.00011763,2]
[355546237,1741259438510,-500.3426349,0.00011773,2]
[355546238,1741259438520,-14757.97408265,0.00011785,2]
[355546239,1741259438534,-1584.6902817,0.00011785,2]
[355546240,1741259439498,-3772.61074269,0.00011785,2]
[355546241,1741259439661,-400.80138685,0.00011785,2]
[355546242,1741259439672,-37039.7605091,0.00011785,2]
[355546243,1741259439953,-9701.26173417,0.00011785,2]
[355546244,1741259439965,-1217.4,0.00011785,2]
[355546245,1741259439977,-1610.52,0.00011785,2]
[355546246,1741259439989,-588.9769663,0.00011785,2]
[355546247,1741259440013,-1377.76451717,0.00011785,2]
[355546261,1741259442551,-1000.0,0.00011688,2]
[355546262,1741259442560,-4752.68141443,0.00011785,2]
[355546263,1741259442604,-1873.47415765,0.00011785,2]
[355546264,1741259442769,-1136.29584182,0.00011785,2]
[355546268,1741259446122,-21793.24183578,0.00011785,2]
[355546269,1741259446131,-500.0,0.00011787,2]
[355546270,1741259446141,-500.0,0.00011787,2]
[355546271,1741259446150,-195.40702289,0.00011787,2]
[355546272,1741259446159,-805.36,0.00011787,2]
[355546273,1741259446168,-649.46,0.00011787,2]
[355546274,1741259446178,-825.17,0.00011787,2]
[355546275,1741259446187,-500.0,0.00011787,2]
[355546276,1741259446197,-1445.26,0.00011787,2]
[355546277,1741259446206,-1257.63,0.00011787,2]
[355546278,1741259446216,-500.0,0.00011787,2]
[355546279,1741259446224,-989.3,0.00011787,2]
[355546280,1741259446234,-500.0,0.00011787,2]
[355546281,1741259446244,-500.0,0.00011787,2]
[355546282,1741259446253,-1527.74,0.00011787,2]
[355546283,1741259446263,-500.0,0.00011787,2]
[355546284,1741259446272,-805.65,0.00011787,2]
[355546285,1741259446283,-1379.49,0.00011787,2]
[355546286,1741259446293,-583.16549065,0.00011787,2]
[355546287,1741259446303,-500.0,0.00011787,2]
[355546288,1741259446313,-1013.38,0.00011787,2]
[355546289,1741259446323,-1251.24,0.00011787,2]
[355546290,1741259446333,-3393.3,0.00011787,2]
[355546291,1741259446343,-539.61,0.00011787,2]
[355546292,1741259446352,-1006.15,0.00011787,2]
[355546293,1741259446363,-590.43,0.00011787,2]
[355546294,1741259446373,-573.84,0.00011787,2]
[355546295,1741259446383,-643.87,0.00011787,2]
[355546296,1741259446392,-768.85,0.00011787,2]
[355546297,1741259446402,-1136.43,0.00011787,2]
[355546298,1741259446411,-500.0,0.00011787,2]
[355546299,1741259446421,-1239.21,0.00011787,2]
[355546300,1741259446431,-500.0,0.00011787,2]
[355546301,1741259446441,-508.41058427,0.00011787,2]
[355546303,1741259446450,-642.68,0.00011787,2]
[355546305,1741259446459,-640.75,0.00011787,2]
[355546307,1741259446469,-500.0,0.00011787,2]
[355546309,1741259446478,-4355.9,0.00011787,2]
[355546311,1741259446488,-500.0,0.00011787,2]
[355546313,1741259446497,-514.17,0.00011787,2]
[355546315,1741259446507,-500.0,0.00011787,2]
[355546317,1741259446516,-500.0,0.00011787,2]
[355546319,1741259446525,-221.50801636,0.00011787,2]
[355546321,1741259446534,-500.0,0.00011787,2]
[355546322,1741259446543,-500.0,0.00011787,2]
[355546323,1741259446553,-500.0,0.00011787,2]
[355546324,1741259446562,-500.0,0.00011787,2]
[355546325,1741259446571,-500.0,0.00011787,2]
[355546327,1741259446581,-500.0,0.00011787,2]
[355546328,1741259446590,-500.0,0.00011787,2]
[355546329,1741259446599,-500.0,0.00011787,2]
[355546330,1741259446609,-500.0,0.00011787,2]
[355546331,1741259446618,-500.0,0.00011787,2]
[355546332,1741259446627,-500.0,0.00011787,2]
[355546333,1741259446637,-500.0,0.00011787,2]
[355546334,1741259446646,-500.0,0.00011787,2]
[355546335,1741259446656,-604.14386737,0.00011787,2]
[355546336,1741259446666,-500.0,0.00011787,2]
[355546337,1741259446675,-500.0,0.00011787,2]
[355546338,1741259446685,-500.0,0.00011787,2]
[355546339,1741259446695,-500.0,0.00011787,2]
[355546340,1741259446707,-23855.61845118,0.00011787,2]
[355546341,1741259446818,-9177.51012001,0.00011787,2]
[355546342,1741259446830,-48056.72093723,0.00011787,2]
[355546343,1741259446840,-85758.08363838,0.00011787,2]
[355546344,1741259446851,-67056.67800607,0.00011787,2]
[355546345,1741259446861,-15092.57441896,0.00011788,2]
[355546346,1741259446871,-500.0,0.00011788,2]
[355546347,1741259446881,-515.15,0.00011788,2]
[355546348,1741259446891,-500.0,0.00011788,2]
[355546349,1741259446901,-500.0,0.00011788,2]
[355546350,1741259446911,-500.0,0.00011788,2]
[355546351,1741259446922,-500.0,0.00011788,2]
[355546352,1741259446931,-500.0,0.00011788,2]
[355546353,1741259446940,-500.0,0.00011788,2]
[355546354,1741259446950,-500.0,0.00011788,2]
[355546355,1741259446959,-509.73605782,0.00011788,2]
[355546356,1741259446968,-500.0,0.00011788,2]
[355546357,1741259446977,-534.08,0.00011788,2]
[355546358,1741259446987,-500.0,0.00011788,2]
[355546359,1741259446996,-500.0,0.00011788,2]
[355546360,1741259447006,-500.0,0.00011788,2]
[355546361,1741259447015,-500.0,0.00011788,2]
[355546362,1741259447024,-500.0,0.00011788,2]
[355546363,1741259447033,-500.0,0.00011788,2]
[355546364,1741259447042,-724.82,0.00011788,2]
[355546365,1741259447051,-799.31,0.00011788,2]
[355546366,1741259447063,-500.0,0.00011788,2]
[355546367,1741259447073,-500.0,0.00011788,2]
[355546368,1741259447083,-500.0,0.00011788,2]
[355546369,1741259447092,-500.0,0.00011788,2]
[355546370,1741259447102,-500.0,0.00011788,2]
[355546371,1741259447111,-500.93095466,0.00011788,2]
[355546372,1741259447120,-500.0,0.00011788,2]
[355546373,1741259447129,-530.61,0.00011788,2]
[355546374,1741259447139,-500.0,0.00011788,2]
[355546375,1741259447148,-500.0,0.00011788,2]
[355546376,1741259447158,-500.0,0.00011788,2]
[355546377,1741259447168,-500.0,0.00011788,2]
[355546378,1741259447178,-500.0,0.00011788,2]
[355546379,1741259447188,-306.31066212,0.00011788,2]
[355546380,1741259447197,-500.0,0.00011788,2]
[355546381,1741259447206,-500.0,0.00011788,2]
[355546382,1741259447215,-500.0,0.00011788,2]
[355546383,1741259447224,-500.0,0.00011788,2]
[355546384,1741259447233,-500.0,0.00011788,2]
[355546385,1741259447242,-594.73,0.00011788,2]
[355546386,1741259447252,-500.0,0.00011788,2]
[355546387,1741259447261,-269.68837675,0.00011788,2]
[355546388,1741259447270,-500.0,0.00011788,2]
[355546389,1741259447279,-633.64,0.00011788,2]
[355546390,1741259447288,-500.0,0.00011788,2]
[355546391,1741259447297,-507.45276572,0.00011788,2]
[355546392,1741259447306,-500.0,0.00011788,2]
[355546393,1741259447315,-258.24376399,0.00011788,2]
[355546394,1741259447325,-500.0,0.00011788,2]
[355546395,1741259447333,-500.0,0.00011788,2]
[355546396,1741259447343,-500.0,0.00011788,2]
[355546397,1741259447352,-801.0,0.00011788,2]
[355546398,1741259447362,-500.0,0.00011788,2]
[355546399,1741259447372,-500.0,0.00011788,2]
[355546400,1741259447381,-500.0,0.00011788,2]
[355546401,1741259447391,-500.0,0.00011788,2]
[355546402,1741259447400,-500.0,0.00011788,2]
[355546403,1741259447409,-500.0,0.00011788,2]
[355546404,1741259447418,-500.0,0.00011788,2]
[355546405,1741259447428,-500.0,0.00011788,2]
[355546406,1741259447438,-500.0,0.00011788,2]
[355546407,1741259447447,-500.0,0.00011788,2]
[355546408,1741259447456,-500.0,0.00011788,2]
[355546409,1741259447465,-500.0,0.00011788,2]
[355546410,1741259447475,-500.0,0.00011788,2]
[355546411,1741259447484,-500.0,0.00011788,2]
[355546412,1741259447493,-500.0,0.00011788,2]
[355546413,1741259447503,-500.0,0.00011788,2]
[355546414,1741259447512,-500.0,0.00011788,2]
[355546415,1741259447521,-500.0,0.00011788,2]
[355546416,1741259447531,-500.0,0.00011788,2]
[355546417,1741259447541,-209.16667646,0.00011788,2]
[355546418,1741259447550,-316.56,0.00011788,2]
[355546419,1741259447560,-500.0,0.00011788,2]
[355546420,1741259447570,-500.0,0.00011788,2]
[355546421,1741259447585,-500.0,0.00011788,2]
[355546422,1741259447599,-621.68,0.00011788,2]
[355546423,1741259447609,-764.91,0.00011788,2]
[355546424,1741259447618,-500.0,0.00011788,2]
[355546425,1741259447628,-500.0,0.00011788,2]
[355546426,1741259447638,-500.0,0.00011788,2]
[355546427,1741259447648,-749.475931,0.00011788,2]
[355546428,1741259447658,-589.14,0.00011788,2]
[355546429,1741259447667,-772.87,0.00011788,2]
[355546430,1741259447678,-500.0,0.00011788,2]
[355546431,1741259447688,-302.70815714,0.00011788,2]
[355546432,1741259447701,-500.0,0.00011788,2]
[355546433,1741259447711,-500.0,0.00011788,2]
[355546434,1741259447721,-500.0,0.00011788,2]
[355546435,1741259447731,-887.14,0.00011788,2]
[355546436,1741259447742,-1152.97469,0.00011788,2]
[355546437,1741259447751,-511.93,0.00011788,2]
[355546438,1741259447761,-500.0,0.00011788,2]
[355546439,1741259447771,-502.64501567,0.00011788,2]
[355546440,1741259447786,-500.0,0.00011788,2]
[355546441,1741259447797,-500.0,0.00011788,2]
[355546442,1741259447807,-500.0,0.00011788,2]
[355546443,1741259447817,-173.71469071,0.00011788,2]
[355546444,1741259447827,-500.0,0.00011788,2]
[355546445,1741259447836,-353.91004048,0.00011788,2]
[355546446,1741259447846,-500.0,0.00011788,2]
[355546447,1741259447856,-500.0,0.00011788,2]
[355546448,1741259447865,-845.51,0.00011788,2]
[355546449,1741259447874,-767.89,0.00011788,2]
[355546450,1741259447883,-500.0,0.00011788,2]
[355546451,1741259447894,-500.0,0.00011788,2]
[355546452,1741259447903,-500.0,0.00011788,2]
[355546453,1741259447914,-500.0,0.00011788,2]
[355546454,1741259447924,-500.0,0.00011788,2]
[355546455,1741259447934,-500.0,0.00011788,2]
[355546456,1741259447944,-500.0,0.00011788,2]
[355546457,1741259447953,-500.0,0.00011788,2]
[355546458,1741259447965,-937.57,0.00011788,2]
[355546459,1741259447975,-500.0,0.00011788,2]
[355546460,1741259447984,-500.0,0.00011788,2]
[355546461,1741259447995,-500.0,0.00011788,2]
[355546462,1741259448005,-500.0,0.00011788,2]
[355546463,1741259448015,-442.68872327,0.00011788,2]
[355546464,1741259448024,-833.69,0.00011788,2]
[355546465,1741259448034,-500.0,0.00011788,2]
[355546466,1741259448044,-656.32,0.00011788,2]
[355546467,1741259448054,-608.13249569,0.00011788,2]
[355546468,1741259448064,-500.0,0.00011788,2]
[355546469,1741259448074,-510.81114962,0.00011788,2]
[355546470,1741259448083,-500.0,0.00011788,2]
[355546471,1741259448093,-505.23206607,0.00011788,2]
[355546472,1741259448103,-650.79,0.00011788,2]
[355546473,1741259448113,-500.0,0.00011788,2]
[355546474,1741259448123,-503.15891962,0.00011788,2]
[355546475,1741259448133,-504.43398488,0.00011788,2]
[355546476,1741259448143,-519.12,0.00011788,2]
[355546477,1741259448152,-644.63,0.00011788,2]
[355546478,1741259448162,-500.0,0.00011788,2]
[355546479,1741259448172,-500.0,0.00011788,2]
[355546480,1741259448181,-312.09273759,0.00011788,2]
[355546481,1741259448191,-500.0,0.00011788,2]
[355546482,1741259448202,-500.0,0.00011788,2]
[355546483,1741259448212,-677.92,0.00011788,2]
[355546484,1741259448222,-500.0,0.00011788,2]
[355546485,1741259448517,-698.42,0.00011788,2]
[355546486,1741259448528,-500.0,0.00011788,2]
[355546487,1741259448538,-505.1793341,0.00011788,2]
[355546488,1741259448548,-500.0,0.00011788,2]
[355546489,1741259448559,-703.73,0.00011788,2]
[355546490,1741259448569,-500.0,0.00011788,2]
[355546491,1741259448579,-500.94512463,0.00011788,2]
[355546492,1741259448588,-500.0,0.00011788,2]
[355546493,1741259448598,-955.04,0.00011788,2]
[355546494,1741259448607,-500.0,0.00011788,2]
[355546495,1741259448618,-500.0,0.00011788,2]
[355546496,1741259448627,-1537.87,0.00011788,2]
[355546497,1741259448637,-500.0,0.00011788,2]
[355546498,1741259448648,-500.0,0.00011788,2]
[355546499,1741259448658,-500.0,0.00011788,2]
[355546500,1741259448667,-500.0,0.00011788,2]
[355546501,1741259448677,-2903.0,0.00011788,2]
[355546502,1741259448688,-500.0,0.00011788,2]
[355546503,1741259448698,-500.0,0.00011788,2]
[355546504,1741259448713,-500.0,0.00011788,2]
[355546505,1741259448723,-598.69,0.00011788,2]
[355546506,1741259448733,-2019.94,0.00011788,2]
[355546507,1741259448743,-792.39405248,0.00011788,2]
[355546508,1741259805802,309.04887307,8.935e-05,2]
[355546509,1741259805836,112.49112693,8.935e-05,2]
[355546532,1741260631862,-1000.0,0.00010764,2]
[355546533,1741260631872,-50.0,0.00010807,2]
[355546534,1741260631884,-233.55,0.00010807,2]
[355546535,1741260631893,-158.03,0.0001089,2]
[355546536,1741260631902,-200.0,0.00010959,2]
[355546537,1741260631912,-158.03,0.00011107,2]
[355546538,1741260631922,-421.54,0.00011199,2]
[355546539,1741260631931,-159.54,0.00011226,2]
[355546540,1741260631940,-158.03,0.00011325,2]
[355546541,1741260631951,-398.2074,0.00011485,2]
[355546542,1741260631961,-158.03,0.00011543,2]
[355546543,1741260631971,-180.77078563,0.0001158,2]
[355546544,1741260631980,-226.21735076,0.0001165,2]
[355546545,1741260631990,-484.94829924,0.0001168,2]
[355546546,1741260632015,-1199.03640389,0.0001168,2]
[355546547,1741260632032,-364.26704952,0.0001168,2]
[355546548,1741260632042,-203.56995108,0.00011685,2]
[355546549,1741260632053,-67.20634892,0.00011685,2]
[355546550,1741260632062,-153.62169544,0.00011687,2]
[355546551,1741260632072,-158.12184812,0.00011687,2]
[355546552,1741260632082,-1376.01319662,0.00011687,2]
[355546553,1741260632091,-95.4869109,0.00011687,2]
[355546554,1741260632103,-914.09130211,0.00011687,2]
[355546555,1741260632116,-275.62899589,0.00011687,2]
[355546556,1741260632136,-949.94196682,0.00011687,2]
[355546557,1741260632147,-550.05803318,0.00011687,2]
[355546558,1741260632186,-665.2855,0.00011687,2]
[355546559,1741260632200,-475.49962009,0.00011687,2]
[355546560,1741260632211,-463.5345,0.00011687,2]
[355546561,1741260632228,-7914.1890523,0.00011687,2]
[355546563,1741260637725,-1508.08260215,0.00011687,2]
[355546564,1741260637833,-1853.85910416,0.00011687,2]
[355546579,1741260639863,-548.96389065,0.00011687,2]
[355546580,1741260639924,-748.58732175,0.00011687,2]
[355546581,1741260639934,-342.87,0.00011687,2]
[355546582,1741260639944,-301.5,0.000117,2]
[355546583,1741260639955,-1009.0,0.000117,2]
[355546584,1741260639965,-158.03,0.00011761,2]
[355546585,1741260639975,-1543.79441195,0.00011773,2]
[355546586,1741260639986,-402.84558805,0.00011773,2]
[355546587,1741260639996,-280.84338572,0.00011785,2]
[355546588,1741260640005,-150.0,0.00011785,2]
[355546589,1741260640015,-1177.46,0.00011786,2]
[355546590,1741260640025,-585.27,0.00011786,2]
[355546591,1741260640035,-144.38037703,0.00011786,2]
[355546609,1741260643559,-355.61962297,0.00011786,2]
[355546610,1741260643569,-1496.84,0.00011786,2]
[355546611,1741260643579,-1527.49,0.00011786,2]
[355546612,1741260643589,-140.15338103,0.00011786,2]
[355546613,1741260643615,-359.84661897,0.00011786,2]
[355546614,1741260643625,-957.57,0.00011786,2]
[355546615,1741260643635,-687.21001383,0.00011786,2]
[355546616,1741261085489,472.79216602,0.000201,120]
[355546617,1741261174023,379.38,8.954e-05,2]
[355546660,1741261831943,-158.71,0.00010762,2]
[355546662,1741261831953,-563.83233573,0.00010766,2]
[355546664,1741261831965,-436.16766427,0.00010766,2]
[355546666,1741261831974,-250.50530398,0.00010775,2]
[355546671,1741261832078,-42.31469602,0.00010775,2]
[355546672,1741261832088,-158.98,0.00010785,2]
[355546673,1741261832097,-52.84194278,0.00010892,2]
[355546680,1741261837712,-497.15805722,0.00010892,2]
[355546681,1741261837722,-550.0,0.00011,2]
[355546682,1741261837731,-250.45291457,0.00011157,2]
[355546683,1741261837741,-379.38,0.00011218,2]
[355546684,1741261837750,-300.0,0.00011256,2]
[355546685,1741261837762,-1338.45705902,0.00011257,2]
[355546686,1741261837927,-429.76989505,0.00011257,2]
[355546705,1741261840158,-641.87478497,0.00011257,2]
[355546706,1741261840192,-23.23999987,0.00011257,2]
[355546762,1741261843052,-831.35,0.00011257,2]
[355546764,1741261843462,-915.44,0.00011257,2]
[355546799,1741261845845,-4208.8,0.00011257,2]
[355546800,1741261846058,-2985.28936005,0.00011257,2]
[355546801,1741261846067,-1437.26111371,0.000116,2]
[355546802,1741261846077,-150.0,0.00011644,2]
[355546803,1741261846087,-150.0,0.00011678,2]
[355546804,1741261846096,-2233.39,0.00011678,2]
[355546805,1741261846106,-1176.66,0.00011678,2]
[355546806,1741261846115,-153.62169544,0.00011684,2]
[355546807,1741261846124,-994.7329,0.00011685,2]
[355546808,1741261846134,-3449.7569743,0.00011686,2]
[355546809,1741262013833,290.0,0.00014,30]
[355546810,1741262108621,-2000.0,0.00010848,2]
[355546811,1741262108646,-550.0,0.00011224,2]
[355546812,1741262108667,-1571.8479,0.00011599,2]
[355546813,1741262108688,-630.1166,0.000116,2]
[355546814,1741262108710,-1326.42425,0.0001167,2]
[355546815,1741262108735,-813.0481257,0.00011686,2]
[355546816,1741262108756,-387.95497252,0.00011686,2]
[355546817,1741262108777,-150.0,0.00011699,2]
[355546818,1741262108801,-5570.60815178,0.000117,2]
[355546819,1741262223097,391.0,8.909e-05,2]
[355546820,1741262610945,150.0,0.0001925,120]
[355546821,1741262630957,-292.82,0.00010761,2]
[355546822,1741262630981,-226.84,0.00010762,2]
[355546823,1741262631002,-150.0,0.00011095,2]
[355546824,1741262631024,-391.0,0.00011173,2]
[355546825,1741262631045,-6896.435498,0.00011442,2]
[355546826,1741262631066,-685.55773458,0.000115,2]
[355546827,1741262631088,-2206.01717815,0.000116,2]
[355546828,1741262631110,-4539.37455074,0.000116,2]
[355546829,1741262631131,-9294.1803,0.00011659,2]
[355546830,1741262631152,-1263.1453,0.0001168,2]
[355546831,1741262631173,-2674.8776,0.00011683,2]
[355546832,1741262631193,-387.95497252,0.00011684,2]
[355546833,1741262631215,-150.99,0.00011699,2]
[355546834,1741262631237,-1176.66,0.00011699,2]
[355546835,1741262631258,-150.0,0.00011699,2]
[355546836,1741262631282,-177998.39705532,0.000117,2]
[355546837,1741262631303,-9264.45193195,0.000117,2]
[355546838,1741262631325,-6520.0,0.000117,2]
[355546839,1741262631347,-2600.0,0.000117,4]
[355546840,1741262631370,-1296.18977,0.000117,2]
[355546841,1741262650273,399.31,0.000117,2]
[355546842,1741262663274,-2206.01717814,0.00011744,2]
[355546843,1741262663296,-1668.54,0.00011757,2]
[355546844,1741262663317,-792.63,0.00011777,2]
[355546845,1741262663339,-643.41,0.00011777,2]
[355546846,1741262663360,-500.0,0.00011778,2]
[355546847,1741262663381,-1022.25,0.00011778,2]
[355546848,1741262663402,-549.93,0.00011778,2]
[355546849,1741262663422,-500.0,0.00011778,2]
[355546850,1741262663446,-500.0,0.00011778,2]
[355546851,1741262663468,-795.26,0.00011778,2]
[355546852,1741262663490,-500.0,0.00011778,2]
[355546853,1741262663515,-500.0,0.00011778,2]
[355546854,1741262663536,-500.0,0.00011778,2]
[355546855,1741262663557,-500.0,0.00011778,2]
[355546856,1741262663578,-500.0,0.00011778,2]
[355546857,1741262663602,-1621.38,0.00011778,2]
[355546858,1741262663625,-1093.51,0.00011778,2]